Cogmind - Beta 17 @@@ ROGUE MODE // 2026.06.25 @ 16:16:33 Player: Cynthion21x Result: Destroyed by G-34 Mercenary with Small Laser Performance ------------- Evolutions (1) 500 Regions Visited (3) 600 Robots Destroyed (21) 105 Value Destroyed (583) 583 Prototype IDs (0) 0 Alien Tech Used (0) 0 Bonus (0) 0 TOTAL SCORE: 1788 Bonus ------- None Cogmind --------- Core Integrity 0/400 Matter 260/300 Energy 60/100 System Corruption 0% Temperature Cool (6) Movement Core (50) Location -9/Mines Parts ------- > --- POWER (1) -------- (None) > --- PROPULSION (2) --- (None) > --- UTILITY (3) ------ (None) > --- WEAPON (3) ------- (None) > --- INVENTORY (5) ---- Light Ion Engine Peak State ------------ > --- POWER ------------ Light Ion Engine > --- PROPULSION ------- Aluminum Leg Aluminum Leg > --- UTILITY ---------- Improved Heat Sink Terrain Scanner > --- WEAPON ----------- Small Laser Particle Gun > --- INVENTORY -------- Wheel Wheel Small Laser Grenade Launcher [Rating: 10] Favorites ----------- Power Light Ion Engine Engine Light Ion Engine Propulsion Aluminum Leg Leg Aluminum Leg Wheel Wheel Hover Unit Hover Unit Utility Backup Plating I Device ECM Suite Storage Huge Storage Unit Processor Targeting Computer Protection Backup Plating I Weapon Small Laser Energy Gun Small Laser Ballistic Gun Assault Rifle Launcher Grenade Launcher Special Weapon Mining Laser Build | -11 -10 -9 -9 ------- Run | Yrd Mat Mat Min Slots Evolved 2 | . . 2 . Power . | . . . . Propulsion . | . . . . Utility 1 | . . 1 . Weapon 1 | . . 1 . Parts Attached 24 | 8 12 3 1 Power 3 | 2 . 1 . Engine 3 | 2 . 1 . Core . | . . . . Reactor . | . . . . Propulsion 7 | 2 4 1 . Treads . | . . . . Leg 4 | 2 2 . . Wheel 1 | . . 1 . Hover 2 | . 2 . . Flight . | . . . . Utility 6 | . 5 1 . Device 3 | . 3 . . Storage 1 | . 1 . . Processor 1 | . 1 . . Hackware . | . . . . Protection 1 | . . 1 . Artifact . | . . . . Weapon 8 | 4 3 . 1 Energy Gun 3 | 1 2 . . Energy Cannon . | . . . . Ballistic Gun 2 | 2 . . . Ballistic Cannon . | . . . . Launcher 1 | . 1 . . Special Weapon 2 | 1 . . 1 Impact Weapon . | . . . . Slashing Weapon . | . . . . Piercing Weapon . | . . . . Special Melee Weapon . | . . . . Unidentified Prototypes . | . . . . Parts Lost 14 | . 2 8 4 Power 2 | . . 2 . Propulsion 3 | . . 3 . Utility 5 | . 2 2 1 Weapon 4 | . . 1 3 Highest Loss Streak 7 | . 2 7 4 To Critical Strikes . | . . . . Average Backups 3 | 2 4 2 . Power . | . . . . Propulsion 1 | 1 2 1 . Utility . | . . . . Weapon 1 | . 1 . . Tool/Special . | . . . . Unused Backups 2 | . . 1 1 Power 1 | . . . 1 Propulsion 1 | . . 1 . Utility . | . . . . Weapon . | . . . . Tool/Special . | . . . . Average Slot Usage (%) 75 | . 87 76 23 Engine 10 | . 12 9 . Leg 11 | . 19 . . Hover 7 | . 4 17 . Device 8 | . 7 11 10 Processor 4 | . 2 10 . Protection 8 | . 12 6 . Energy Gun 18 | . 19 20 6 Ballistic Gun 2 | . 5 . . Launcher 2 | . 2 1 6 Peak Build Rating 10 | 5 10 10 4 Average Rating 6 | 3 7 8 2 On Entrance 4 | . 5 8 4 Avg Prop Armor Cover (%) . | . . . . Naked Turns 12 | . . . 12 Heaviest Build 16 | 7 9 16 8 Greatest Support 20 | 20 20 12 3 Greatest Overweight (x) 2 | . 1 2 2 Average Overweight (x) . | . . . 1 Largest Inventory Capacity 25 | 5 25 5 5 Average Capacity 5 | 5 5 5 5 Most Carried 5 | 5 5 5 2 Average Carried 3 | 2 4 2 . Final Capacity 5 | 5 5 5 5 Final Carried 4 | 4 4 . 1 Class Distribution -------------------- 58% | Mutant 41% | Scavenger-Mutant Dominant Class ---------------- Mutant | -10/Materials Scavenger-Mutant | -9/Materials Mutant | -9/Mines Resources | -11 -10 -9 -9 ----------- Run | Yrd Mat Mat Min Matter Collected 579 | 292 249 38 . Remotely . | . . . . Salvage Created 716 | 33 532 100 51 Parts 46 | 3 36 5 2 Haulers Intercepted . | . . . . Recyclers Shooed . | . . . . Parts Field Recycled . | . . . . Retrieved Matter . | . . . . Parts Self-Destructed . | . . . . Prevented . | . . . . Parts Restored . | . . . . Kills | -11 -10 -9 -9 ------- Run | Yrd Mat Mat Min Combat Hostiles Destroyed 14 | 1 11 2 . Guns 13 | 1 10 2 . AOE 1 | . 1 . . Classes Destroyed 6 | 1 2 1 2 Builder 3 | . 2 . 1 Tunneler 1 | . . . 1 Recycler 1 | . . . 1 Watcher 2 | . 2 . . Grunt 13 | 1 11 1 . Sentry 1 | . . 1 . Best Kill Streak 3 | 1 3 1 3 Combat Bots Only 3 | 1 3 1 . Max Kills in Single Turn 3 | 1 3 1 1 Gunslinging . | . . . . Exploded 1 | . 1 . . Melee . | . . . . Uniques/NPCs Destroyed . | . . . . Combat | -11 -10 -9 -9 -------- Run | Yrd Mat Mat Min Hostile Shots Fired 176 | 13 49 47 67 Missed 49 | 3 10 13 23 Hits 127 | 10 39 34 44 Projectile 127 | 10 39 34 44 Critical Strikes 5 | . 1 2 2 Damage Taken 1519 | 111 524 468 416 Core 541 | . 133 89 319 Absorbed by Shields . | . . . . Regen/Repaired (Parts) 11 | . 11 . . Core Remaining (%) 73 | 100 46 . . Volleys Fired 61 | 7 39 11 4 Largest 3 | 2 2 3 2 Hottest 135 | 40 105 135 95 Shots Fired 123 | 14 78 23 8 Gun 116 | 14 76 22 4 Cannon . | . . . . Launcher 7 | . 2 1 4 Special . | . . . . Kinetic 36 | 14 22 . . Thermal 80 | . 54 22 4 Explosive 7 | . 2 1 4 Electromagnetic . | . . . . Robot Hit Streak 20 | 6 15 20 2 Robot Miss Streak 4 | 3 2 4 1 Penetration Max . | . . . . Secondary Targets . | . . . . Shots Hit Robots 81 | 8 59 11 3 Core Hits 38 | 2 28 4 4 Critical Kills . | . . . . Critical Parts Destroyed . | . . . . Critical Strikes . | . . . . Melee Attacks . | . . . . Impact . | . . . . Slashing . | . . . . Piercing . | . . . . Sneak Attacks . | . . . . Combat Hostiles . | . . . . Follow-up Attacks . | . . . . Damage Inflicted 1281 | 113 860 149 159 Guns 1014 | 113 702 149 50 Cannons . | . . . . Explosions 267 | . 158 . 109 Melee . | . . . . Ramming . | . . . . Kinetic 302 | 113 189 . . Thermal 712 | . 513 149 50 Explosive 267 | . 158 . 109 Electromagnetic . | . . . . Impact . | . . . . Slashing . | . . . . Piercing . | . . . . Highest Corruption . | . . . . Average Corruption . | . . . . Corruption Purged . | . . . . Corruption Blocked . | . . . . Overload Shots . | . . . . Overflow Damage . | . . . . Projectiles . | . . . . Explosions . | . . . . Melee . | . . . . Knockbacks . | . . . . Impact . | . . . . Kinetic . | . . . . Secondary . | . . . . Self-Inflicted Damage 57 | . 35 . 22 Shots 2 | . 1 . 1 Rammed . | . . . . Targets Rammed . | . . . . Kicked . | . . . . Crushed . | . . . . Highest Temperature 249 | . 129 249 18 Average Temperature 60 | . 51 94 10 Received Heat Transfer 675 | 60 297 234 84 Siege Activations . | . . . . Martial Activations . | . . . . Shielding Activations . | . . . . Robots Disrupted . | . . . . Combat Hostiles . | . . . . Robots Corrupted . | . . . . Combat Hostiles . | . . . . Parts Fried . | . . . . Impact Corruptions . | . . . . Robots Melted . | . . . . Combat Hostiles . | . . . . Parts Melted 1 | . 1 . . Heat Transferred 1628 | . 1170 347 111 Parts Sabotaged . | . . . . Parts Stolen . | . . . . Parts Stripped . | . . . . Power Chain Reactions . | . . . . Alert | -11 -10 -9 -9 ------- Run | Yrd Mat Mat Min Maximum Alert Level . | . . . . Low Security (%) 100 | 100 100 100 100 Level 1 . | . . . . Level 2 . | . . . . Level 3 . | . . . . Level 4 . | . . . . Level 5 . | . . . . High Security . | . . . . Max Security . | . . . . Peak Influence 128 | 20 128 60 38 Initial 50 | . 6 50 . Average 46 | 3 74 26 8 Influence Increases 506 | 20 358 80 48 Destroy 0b10 Robot/C 280 | 20 220 40 . Destroy 0b10 Robot/NC 35 | . 20 . 15 Destroy Leader 64 | . 44 20 . Successful Hack 16 | . 16 . . Disable Machine 15 | . 15 . . Destroy Structure 51 | . 13 5 33 Partial Spotted 15 | . . 15 . Lose Combat Pursuer 30 | . 30 . . Influence Decreases 506 | 10 248 200 48 Entered New Map 74 | . 4 70 . Time Decay 354 | 10 224 100 20 Lost Part 78 | . 20 30 28 Squads Dispatched 6 | . 3 2 1 Investigation 5 | . 3 2 . Extermination . | . . . . Reinforcement 1 | . . . 1 Assault . | . . . . Garrison . | . . . . Intercept . | . . . . Searches Triggered . | . . . . Construction Impeded 1 | . . . 1 Haulers Reinforced . | . . . . Active Scanning Responses . | . . . . Cargo Convoy Interrupts . | . . . . Stealth | -11 -10 -9 -9 --------- Run | Yrd Mat Mat Min Distress Signals 2 | . 2 . . Communications Jammed . | . . . . Distress Signals . | . . . . Times Spotted 29 | 1 15 8 5 Peak Tracking Total 5 | 1 4 4 5 Tactical Retreats 4 | . 2 2 . ECM-based Alert Blocks 3 | . . 3 . Traps | -11 -10 -9 -9 ------- Run | Yrd Mat Mat Min Traps Triggered 2 | . 1 1 . Indirectly . | . . . . Trap Hack Attempts . | . . . . Triggered . | . . . . Disarmed . | . . . . Reprogrammed . | . . . . Reused . | . . . . Traps Extracted . | . . . . Installed . | . . . . Triggered . | . . . . Machines | -11 -10 -9 -9 ---------- Run | Yrd Mat Mat Min Machines Disabled 1 | . 1 . . Max in Single Turn 1 | . 1 . . Machines Repaired . | . . . . Machines Dismantled . | . . . . Machines Sabotaged . | . . . . Overloaded Fab Kills . | . . . . Hacking | -11 -10 -9 -9 --------- Run | Yrd Mat Mat Min Machines Accessed 5 | . 3 2 . Terminals 4 | . 2 2 . Fabricators . | . . . . Repair Stations 1 | . 1 . . Recycling Units . | . . . . Scanalyzers . | . . . . Garrison Access . | . . . . Total Hacks 20 | . 11 9 . Successful 9 | . 7 2 . Failed 11 | . 4 7 . Catastrophic . | . . . . Database Lockouts . | . . . . Manual . | . . . . Terminals 17 | . 8 9 . Fabricators . | . . . . Repair Stations 3 | . 3 . . Recycling Units . | . . . . Scanalyzers . | . . . . Garrison Access . | . . . . Terminal Hacks 6 | . 4 2 . Record 1 | . 1 . . Alert Level 2 | . 1 1 . Locate Traps 1 | . 1 . . Assault Status 1 | . 1 . . Zone Layout 1 | . . 1 . Fabricator Hacks . | . . . . Repair Station Hacks 3 | . 3 . . Scan Component 1 | . 1 . . Repair 1 | . 1 . . Refit 1 | . 1 . . Recycling Unit Hacks . | . . . . Scanalyzer . | . . . . Garrison Access Hacks . | . . . . Unauthorized Hacks . | . . . . Terminals . | . . . . Fabricators . | . . . . Repair Stations . | . . . . Recycling Units . | . . . . Scanalyzers . | . . . . Garrison Access . | . . . . Data Cores Recovered . | . . . . Used . | . . . . Hacking Detections 5 | . 3 2 . Full Trace Events 3 | . 2 1 . Feedback Events . | . . . . Feedback Blocked . | . . . . Robot Schematics Acquired . | . . . . Robots Built . | . . . . Authchips . | . . . . Time . | . . . . Total Robot Build Rating . | . . . . Part Schematics Acquired . | . . . . Parts Built . | . . . . Authchips . | . . . . Time . | . . . . Total Part Build Rating . | . . . . Part Studies Acquired . | . . . . Parts Repaired 1 | . 1 . . Time 26 | . 26 . . Parts Recycled . | . . . . Recycled Matter . | . . . . Retrieved Matter . | . . . . Retrieved Components . | . . . . Parts Scanalyzed . | . . . . Part Schematics Acquired . | . . . . Parts Damaged . | . . . . Bothacking | -11 -10 -9 -9 ------------ Run | Yrd Mat Mat Min Used RIF Installer . | . . . . Robots Hacked . | . . . . Non-combat . | . . . . Combat . | . . . . Robot Hacks Applied . | . . . . Relay Couplers Released . | . . . . Fabnet Peak Effective % . | . . . . Robots Rewired . | . . . . Allies Hacked . | . . . . Hacks Repelled . | . . . . Allies | -11 -10 -9 -9 -------- Run | Yrd Mat Mat Min Total Allies . | . . . . Largest Group . | . . . . Highest-Rated Group . | . . . . Highest-Rated Ally . | . . . . Total Orders . | . . . . Ally Attacks . | . . . . Total Damage . | . . . . Kills . | . . . . Allies Corrupted . | . . . . Allies Melted . | . . . . Intel | -11 -10 -9 -9 ------- Run | Yrd Mat Mat Min Active Infowar (turns) 493 | . 117 275 101 Terrain 113 | . 113 . . ECM 380 | . 4 275 101 Robot Analysis Total . | . . . . Derelict Logs Recovered . | . . . . Drone Launches . | . . . . Drone Recoveries . | . . . . Exploration | -11 -10 -9 -9 ------------- Run | Yrd Mat Mat Min Turns Passed 1012 | 117 507 275 113 Spaces Moved 546 | 79 243 184 40 Core 88 | 27 . 21 40 Treads . | . . . . Legs 210 | 52 158 . . Wheels 5 | . . 5 . Hover 243 | . 85 158 . Flight . | . . . . Fastest Speed 50 | 50 56 56 50 Average Speed 111 | 96 118 104 132 Slowest Speed 180 | 120 120 180 150 Overloaded Moves . | . . . . Propulsion Burnouts . | . . . . Robots Hopped . | . . . . Potential Cave-ins . | . . . . Cave-ins Triggered . | . . . . Exploration Rate (%) 18 | 9 29 22 12 Regions Visited 3 Branch Regions 1 Pre-discovered Areas . | . . . . Known Exits Taken . | . . . . Unknown Exits Taken 3 | 1 1 1 . Scrap Searched . | . . . . Spaces Dug . | . . . . Terrain Destroyed 49 | . 9 4 36 Melee . | . . . . Projectile . | . . . . AOE 49 | . 9 4 36 Terrain Rammed . | . . . . Walls Destroyed . | . . . . Machines Disabled . | . . . . Actions | -11 -10 -9 -9 --------- Run | Yrd Mat Mat Min Total 832 | 107 387 246 92 Wait 153 | . 64 44 45 Move 543 | 78 242 183 40 Hop . | . . . . Pick Up 29 | 11 14 2 2 Fast Attach . | . . . . Attach 23 | 8 10 4 1 Detach 2 | 1 1 . . Swap 6 | . 6 . . Drop 15 | 2 11 2 . Fire 61 | 7 39 11 4 Melee . | . . . . Ram . | . . . . Kick . | . . . . Crush . | . . . . Escape Stasis . | . . . . Rewire . | . . . . Trap . | . . . . Miscellaneous . | . . . . Route ------- -11/Scrapyard -10/Materials -9/Materials -9/Mines History --------- Turn | Location | Event 2 | -11/Scrapyard | Met Revision 17 59 | -11/Scrapyard | Discovered new exit (range 8) 118 | -11/Scrapyard | Entered Materials 218 | -10/Materials | Repaired Lgt. Ion Engine? 311 | -10/Materials | Build established: Mutant 591 | -10/Materials | Core integrity fell below 50% 617 | -10/Materials | Discovered new exit (range 7) 625 | -10/Materials | Entered another Materials area 625 | -9/Materials | Evolved 2 slots: Utility x1, Weapon x1 729 | -9/Materials | Build established: Scavenger-Mutant 893 | -9/Materials | Discovered new exit (range 5) 900 | -9/Materials | Entered Mines 913 | -9/Mines | Lost 7 parts (1p3n2u1w) 939 | -9/Mines | Met a Derelict bent on vengeance 981 | -9/Mines | Core integrity fell below 50% 1000 | -9/Mines | Core integrity fell below 20% 1013 | -9/Mines | Destroyed by G-34 Mercenary with Small Laser Last Messages --------------- ALERT: Construction progress impeded, dispatching reinforcements to local area. U-05 Engineer destroyed. The unstable cave ceiling collapses. Acquired Lgt. Ion Engine. Grenade Launcher destroyed. Particle Gun destroyed. To regain energy, simply wait via the mouse wheel, '.', or KP5. Also make sure your per-turn energy generation is a net positive, and consider deactivating power-draining parts if not. S-10 Pest destroyed. The unstable cave ceiling collapses. S-10 Pest destroyed. Mining Laser destroyed. S-10 Pest destroyed. The unstable cave ceiling collapses. ECM Suite destroyed. U-05 Engineer builds a Wall. Map ----- +----------------------------------------------------+ | ????????????????????????????????????????? | | ????????????????????????????????????????? | | ????????????????????????????????????????? | | ????????????????????????????????????????? | | ????????????????????????????????????????? | | ????????????????????????????????????????? | | ????????????????????????????????????????? | | ????????????????????????????????????????? | | ????????????????????????????????????????? | | ????????????????????????????????????????? | | ????????????????????????????????????????? | | ????????????????????????????????????????? | | ????????????????????????????????????????? | | ????????????????????????????????????????? | | ????????????????????????????????????????? | | ??????????????####??????????????????????? | | ?????????????## ##?????????????????????? | | ?????????????# #????????????? #??????? | | ?????????????# ##??????????? #???????? | | ??????????????# ########### #???????? | | ????????????### # # ?????????? | | ????????????# ### ##??????????? | | ????????????# [g su% ##??????????? | | ???????????## %% # * #????????????? | | ??????????## * # #?????????????? | | ??????????# @ # ##?????????????? | | ??????????# ######## #??????????????? | | ??###?????# ##??????? ??????????????? | | ?## ##?### #???????##?????????????? | | ?# ### #??????????????????????? | | ?# # ##??????????????????????? | | ??# ##??????????????????????? | | ??# #??????????????????????? | | ??## # #???????????????? | | ???#### ### #??????????????? | | ??????###??#### #????????????? | | ??????????????###### #???????????? | | ????????????????????## #???????????? | | ???????????????????????## ##???????????? | | ??????????????????????????##????????????? | | ????????????????????????????????????????? | | ????????????????????????????????????????? | | ????????????????????????????????????????? | | ????????????????????????????????????????? | | ????????????????????????????????????????? | | ????????????????????????????????????????? | | ????????????????????????????????????????? | | ????????????????????????????????????????? | | ????????????????????????????????????????? | | | +----------------------------------------------------+ Best States ------------- Heat Dissipation 39 Energy Generation 12 Energy Capacity 265 Matter Stores 300 Matter Capacity 300 Sight Range 16 Terrain Scan Range 14 Terrain Scan Density 10 ECM Strength 1 Armor Coverage 160 Evasion (%) 55 Targeting Accuracy 5 Item Schematics ----------------- None Robot Schematics ------------------ None Fabricated ------------ Nothing Repaired ---------- Lgt. Ion Engine | 72% | -10/Materials Studied --------- None Alien Tech Used ----------------- None Achievements -------------- Fitting Room One Hack Too Far Part-time Mechanic Challenges ------------ None Game ------ Seed AluminumBoltRailcannon Manual? 0 Play Time 00:26:49 Cumulative 0.7 hours Start 2026.06.25 @ 15:39:37 End 2026.06.25 @ 16:16:33 Sessions 1 Manual Loads 0 Difficulty Rogue Special Mode None Game No. 4 Rogue 4 Adventurer 0 Explorer 0 Win Type - Total 0 Types 0/0/0/0/0/0/0/0/0/0 Lore% 0 Gallery% 2 Achievement% 2 Wizard Run 0 Options --------- Layout 1 ASCII 0 Keyboard 0 Movement Numpad Keybinds 0 Fullscreen 1 Font 24/X11 Map View 50x35 Zoom Use 31% Tactical HUD 0 Map Filters NONE Filters NONE Steam 1 RUN: 80b6b660-7f59-4ee3-a019-9903b83fb03f